Workbook

Sheet Dashboard
A2: Income | H2: Expenses | O2: Groundskeeping
A3: Budget | B3: 60900 | H3: Budget | I3: =P3+B21+I21+P21 -> 61475 | O3: Budget | P3: 30000
A4: YTD Collected | B4: ='budget for 2025 2026'!F13 -> 54630.82 | H4: YTD Paid | I4: ='budget for 2025 2026'!F30+21000 -> 38650.25 | O4: YTD Spend | P4: ='budget for 2025 2026'!F19 -> 5198.85
A5: $ Remaining | B5: =B3-B4 -> 6269.18 | H5: $ Remaining | I5: =I3-I4 -> 22824.75 | O5: $ Remaining | P5: =P3-P4 -> 24801.15
A7: % Collected | B7: =B4/B3 -> 0.8970577997 | H7: % Spent | I7: =I4/I3 -> 0.6287149248 | O7: % Spent | P7: =P4/P3 -> 0.173295
A8: % Remaining | B8: =B5/B3 -> 0.1029422003 | H8: % Remaining | I8: =I5/I3 -> 0.3712850752 | O8: % Remaining | P8: =P5/P3 -> 0.826705
A20: Seawall Loan | H20: Water Pumps | O20: Other
A21: Budget | B21: 21000 | H21: Budget | I21: 5000 | O21: Budget | P21: 5475
A22: YTD Paid | B22: 0 | H22: YTD Spend | I22: 6872.69 | O22: YTD Spend | P22: ='budget for 2025 2026'!F16+'budget for 2025 2026'!F17+'budget for 2025 2026'!F18+'budget for 2025 2026'!F21+'budget for 2025 2026'!F22+'budget for 2025 2026'!F23+'budget for 2025 2026'!F25+'budget for 2025 2026'!F26+'budget for 2025 2026'!F27+'budget for 2025 2026'!F28+'budget for 2025 2026'!F29 -> 5578.71
A23: $ Remaining | B23: =B21-B22 -> 21000 | H23: $ Remaining | I23: =I21-I22 -> -1872.69 | O23: $ Remaining | P23: =P21-P22 -> -103.71
A25: % Paid | B25: =B22/B21 -> 0 | H25: % Spent | I25: =I22/I21 -> 1.374538 | O25: % Spent | P25: =P22/P21 -> 1.018942466
A26: % Remaining | B26: =B23/B21 -> 1 | H26: % Remaining | I26: 0 | O26: % Remaining | P26: 0
W39: 2026 Budget | X39: % | Y39: $
W40: Groundskeeping | X40: =Y40/$Y$44 -> 0.4880032534 | Y40: =P3 -> 30000
W41: Loan | X41: =Y41/$Y$44 -> 0.3416022773 | Y41: =B21 -> 21000
W42: Water Pumps | X42: =Y42/$Y$44 -> 0.08133387556 | Y42: =I21 -> 5000
W43: Other | X43: =Y43/$Y$44 -> 0.08906059374 | Y43: =P21 -> 5475
X44: =SUM(X40:X43) -> 1 | Y44: =SUM(Y40:Y43) -> 61475
W46: 2026 Spend | X46: % | Y46: $
W47: Groundskeeping | X47: =Y47/$Y$44 -> 0.08456852379 | Y47: =P4 -> 5198.85
W48: Loan | X48: =Y48/$Y$44 -> 0 | Y48: =B22 -> 0
W49: Water Pumps | X49: =Y49/$Y$44 -> 0.1117965026 | Y49: =I22 -> 6872.69
W50: Other | X50: =Y50/$Y$44 -> 0.09074762098 | Y50: =P22 -> 5578.71
X51: =SUM(X47:X50) -> 0.2871126474 | Y51: =SUM(Y47:Y50) -> 17650.25

Sheet budget for 2025 2026
A1: Fox Run Landing Home Owners Association
A2: 10/1/2025-3/18/2026 Budget vs Actual
A4: Budget | F4: Actual
A6: Income:
A7: Annual Dues | B7: =250*197 -> 49250 | F7: 48294
A8: Interest Income | B8: 150 | F8: 26.77
A9: Reimburse from Golf Course | B9: 11500 | F9: 0
A10: Total Income | B10: =SUM(B7:B9) -> 60900 | F10: 728.5 | G10: Reimburse Legal Fees | J10: 7's
F11: 4010 | G11: Reimburse Lake Maintenance | J11: 7's
F12: 1571.55 | G12: Utility Reimbursement | J12: 7's
F13: =SUM(F7:F12) -> 54630.82
A15: Expenses:
A16: Bank Charges | B16: 150 | F16: 82.65
A17: Computer and Internet Expenses | B17: 600 | F17: 1181.45
A18: Insurance Expense | B18: 2500 | F18: 2197
A19: Landscaping and Groundskeeping | B19: 30000 | F19: 5198.85 | J19: Tom Holm | L19: 198.5
A20: Loan Payback | B20: 21000 | F20: 0 | J20: Clanton | L20: 337.05
A21: Postage and Delivery | B21: 400 | F21: 438 | J21: Brad Point | L21: 200
A22: Miscellaneous | B22: 400 | F22: 0 | J22: Clanton | L22: 337.05
A23: Electricity for Entry Lights | B23: 200 | F23: 114.4 | J23: Ryan Adkins | L23: 500
A24: Electricity for Water Pumps | B24: 5000 | F24: 6872.69
A25: New Homeowner Gifts | B25: 500 | F25: 0
A26: Office Supplies | B26: 200 | F26: 86.21
A27: Picnic | B27: 500 | F27: 0 | G27: =B20+B22+B25+B27 -> 22400
A28: Property Taxes | B28: 25 | F28: 22
A29: Legal Fees | B29: 0 | F29: 1457
A30: Total Expenses | B30: =SUM(B16:B29) -> 61475 | F30: =SUM(F16:F29) -> 17650.25
A34: Bank Balance
A35: Bank Balance 8/15/2025 | B35: 11566.09
A36: Income | B36: =F13 -> 54630.82
A37: Expenses | B37: =-F30 -> -17650.25
A38: Bank Balance 8/15/25 | B38: =SUM(B35:B37) -> 48546.66
A42: Donations for Weed Removal in the Ponds
A44: Received | B44: 6995.81
A45: from the 7's (money not received as of reporting) | B45: 4000
A46: Tools | B46: =-1004.58-248.97-1500 -> -2753.55 | F46: **this is included in the above numbers
A47: Weed Killer | B47: =-1658-934.09 -> -2592.09
A48: Day Labor | B48: =-3580.35-300 -> -3880.35
A49: Balance | B49: =SUM(B44:B48) -> 1769.82
A51: Donation 12/18 | B51: 10
A52: New Balance | B52: 1779.82
